Cogmind - Beta 15 @@@ ROGUE MODE // 2025.06.11 @ 07:36:39 Player: Dosh Result: Core destroyed Performance ------------- Evolutions (1) 500 Regions Visited (6) 1200 Robots Destroyed (87) 435 Value Destroyed (2159) 2159 Prototype IDs (4) 80 Alien Tech Used (0) 0 Bonus (547) 547 TOTAL SCORE: 4921 Bonus ------- High Alert Combat Kills 55 Follower Combat Kills 292 Entered Garrisons 200 Cogmind --------- Core Integrity 0/400 Matter 250/300 Energy 100/100 System Corruption 29% Temperature Cool (0) Movement Core (700) Ox13 Location -9/Recycling Parts ------- > --- POWER (1) -------- Heavy Ion Engine > --- PROPULSION (3) --- Light Treads Light Treads Light Treads > --- UTILITY (3) ------ Improved Heat Sink Large Storage Unit Hardened Light Armor Plating > --- WEAPON (2) ------- Improved Assault Rifle Improved Light Cannon > --- INVENTORY (15) --- Light Ion Engine Light Ion Engine Light Treads Light Treads Light Treads Light Treads Improved Treads High-capacity Storage Unit EM Shotgun EM Shotgun Improved Assault Rifle Improved Assault Rifle Light Cannon Light Cannon Light Cannon Peak State ------------ > --- POWER ------------ Heavy Ion Engine > --- PROPULSION ------- Light Treads Light Treads Light Treads > --- UTILITY ---------- Improved Heat Sink Large Storage Unit Hardened Light Armor Plating > --- WEAPON ----------- Improved Assault Rifle Improved Assault Rifle > --- INVENTORY -------- Light Ion Engine Light Ion Engine Light Treads Light Treads Light Treads Light Treads Improved Treads High-capacity Storage Unit EM Shotgun EM Shotgun Improved Assault Rifle Light Cannon Light Cannon Light Cannon Improved Light Cannon [Rating: 20] Favorites ----------- Power Heavy Ion Engine Engine Heavy Ion Engine Propulsion Light Treads Treads Light Treads Utility Large Storage Unit Device Improved Heat Sink Storage Large Storage Unit Protection Light Armor Plating Weapon Improved Assault Rifle Energy Gun EM Shotgun Ballistic Gun Improved Assault Rifle Ballistic Cannon Light Cannon Build | -11 -10 -10 -9 -9 -9 -9 ------- Run | Yrd Mat Min Mat Sto Gar Rec Slots Evolved 2 | . . . 2 . . . Power . | . . . . . . . Propulsion 1 | . . . 1 . . . Utility 1 | . . . 1 . . . Weapon . | . . . . . . . Parts Attached 41 | 6 9 . 7 16 3 . Power 4 | 1 1 . . 2 . . Engine 4 | 1 1 . . 2 . . Core . | . . . . . . . Reactor . | . . . . . . . Propulsion 14 | 2 1 . 3 7 1 . Treads 14 | 2 1 . 3 7 1 . Leg . | . . . . . . . Wheel . | . . . . . . . Hover . | . . . . . . . Flight . | . . . . . . . Utility 7 | 1 1 . 2 3 . . Device 2 | . . . 1 1 . . Storage 2 | 1 1 . . . . . Processor . | . . . . . . . Hackware . | . . . . . . . Protection 3 | . . . 1 2 . . Artifact . | . . . . . . . Weapon 16 | 2 6 . 2 4 2 . Energy Gun 5 | 1 . . 2 . 2 . Energy Cannon . | . . . . . . . Ballistic Gun 5 | 1 1 . . 3 . . Ballistic Cannon 6 | . 5 . . 1 . . Launcher . | . . . . . . . Special Weapon . | . . . . . . . Impact Weapon . | . . . . . . . Slashing Weapon . | . . . . . . . Piercing Weapon . | . . . . . . . Special Melee Weapon . | . . . . . . . Unidentified Prototypes 2 | . . . . 2 . . Parts Lost 1 | . . . . 1 . . Power . | . . . . . . . Propulsion . | . . . . . . . Utility 1 | . . . . 1 . . Weapon . | . . . . . . . Highest Loss Streak 1 | . . . . 1 . . To Critical Strikes . | . . . . . . . Average Backups 13 | . 11 15 13 14 15 15 Power 1 | . 1 1 1 1 2 2 Propulsion 4 | . 4 6 4 5 5 5 Utility 1 | . . 2 1 1 1 1 Weapon 6 | . 4 6 6 7 7 7 Tool/Special . | . . . . . . . Unused Backups 13 | . . . 3 1 . 9 Power 1 | . . . . . . 1 Propulsion 8 | . . . 3 . . 5 Utility 1 | . . . . . . 1 Weapon 3 | . . . . 1 . 2 Tool/Special . | . . . . . . . Average Slot Usage (%) 98 | . 96 100 95 99 100 100 Engine 12 | . 14 14 11 11 11 11 Treads 31 | . 28 28 33 32 33 33 Device 8 | . . . 10 14 11 11 Storage 16 | . 24 28 11 11 11 11 Protection 5 | . . . 6 7 11 11 Energy Gun 3 | . 2 . 20 . 6 . Ballistic Gun 11 | . 2 . . 20 12 11 Ballistic Cannon 9 | . 22 28 1 . 2 11 Peak Build Rating 20 | 6 9 9 14 20 20 19 Average Rating 14 | 4 7 9 13 18 19 19 On Entrance 11 | . 6 9 9 14 20 19 Naked Turns . | . . . . . . . Heaviest Build 41 | 13 36 34 33 40 41 41 Greatest Support 60 | 40 40 40 60 60 60 60 Greatest Overweight (x) . | . . . . . . . Average Overweight (x) . | . . . . . . . Largest Inventory Capacity 15 | 8 15 15 15 15 15 15 Average Capacity 14 | 7 13 15 15 15 15 15 Most Carried 15 | 2 15 15 15 15 15 15 Average Carried 13 | . 11 15 13 14 15 15 Final Capacity 15 | 8 15 15 15 15 15 15 Final Carried 15 | 2 15 15 14 15 15 15 Class Distribution -------------------- 46% | Mutant 45% | Scavenger-Mutant 7% | Commander-Mutant Dominant Class ---------------- Mutant | -10/Materials Mutant | -10/Mines Mutant | -9/Materials Scavenger-Mutant | -9/Storage Scavenger-Mutant | -9/Garrison Scavenger-Mutant | -9/Recycling Resources | -11 -10 -10 -9 -9 -9 -9 ----------- Run | Yrd Mat Min Mat Sto Gar Rec Matter Collected 1711 | 209 454 39 50 842 117 . Remotely . | . . . . . . . Salvage Created 3086 | . 776 14 304 1654 338 . Parts 205 | . 60 . 18 111 16 . Haulers Intercepted 7 | . 2 . . 5 . . Recyclers Shooed 9 | . 1 1 . 7 . . Parts Field Recycled . | . . . . . . . Retrieved Matter . | . . . . . . . Parts Self-Destructed . | . . . . . . . Prevented . | . . . . . . . Kills | -11 -10 -10 -9 -9 -9 -9 ------- Run | Yrd Mat Min Mat Sto Gar Rec Combat Hostiles Destroyed 63 | . 20 1 6 29 7 . Guns 46 | . 7 . 6 28 5 . Cannons 16 | . 13 1 . 1 1 . AOE 1 | . . . . . 1 . Classes Destroyed 9 | . 7 . 1 1 . . Worker 6 | . 3 . . 3 . . Builder 1 | . . . . 1 . . Hauler 7 | . 2 . . 5 . . Recycler 3 | . 1 . . 2 . . Operator 2 | . 1 . . 1 . . Watcher 5 | . 3 . . 2 . . Swarmer 16 | . 6 1 . 9 . . Grunt 30 | . 14 . 4 10 2 . Sentry 17 | . . . 2 10 5 . Best Kill Streak 6 | . 5 1 5 6 2 . Combat Bots Only 5 | . 3 1 5 4 2 . Max Kills in Single Turn 2 | . 2 1 1 2 1 . Gunslinging . | . . . . . . . Exploded 1 | . . . . . 1 . Melee . | . . . . . . . Uniques/NPCs Destroyed . | . . . . . . . Combat | -11 -10 -10 -9 -9 -9 -9 -------- Run | Yrd Mat Min Mat Sto Gar Rec Hostile Shots Fired 241 | . 79 1 33 101 27 . Missed 65 | . 18 . 12 26 9 . Hits 176 | . 61 1 21 75 18 . Projectile 176 | . 61 1 21 75 18 . Critical Strikes 6 | . . . . 3 3 . Damage Taken 2466 | . 630 8 266 986 252 324 Core 493 | . 83 8 37 73 28 264 Absorbed by Shields . | . . . . . . . Regen/Repaired (Parts) 110 | . 110 . . . . . Core Remaining (%) 81 | 100 . 63 . . . . Volleys Fired 206 | . 61 1 16 101 27 . Largest 2 | . 2 2 2 2 2 . Hottest 90 | . 70 60 90 56 90 . Shots Fired 403 | . 121 2 32 202 46 . Gun 317 | . 51 . 32 196 38 . Cannon 86 | . 70 2 . 6 8 . Launcher . | . . . . . . . Special . | . . . . . . . Kinetic 328 | . 96 2 . 202 28 . Thermal 25 | . 25 . . . . . Explosive . | . . . . . . . Electromagnetic 50 | . . . 32 . 18 . Robot Hit Streak 29 | . 7 1 7 13 29 . Robot Miss Streak 5 | . 5 1 5 3 1 . Penetration Max . | . . . . . . . Secondary Targets 3 | . . . . 2 1 . Max Gunslinging Chain 1 | . . . . 1 1 . Shots Hit Robots 244 | . 61 1 24 125 33 . Core Hits 133 | . 39 1 15 62 16 . Critical Kills . | . . . . . . . Critical Parts Destroyed 1 | . . . . 1 . . Critical Strikes 3 | . 1 . . 1 1 . Burn 1 | . 1 . . . . . Destroy 1 | . . . . 1 . . Blast 1 | . . . . . 1 . Melee Attacks . | . . . . . . . Impact . | . . . . . . . Slashing . | . . . . . . . Piercing . | . . . . . . . Sneak Attacks . | . . . . . . . Combat Hostiles . | . . . . . . . Follow-up Attacks . | . . . . . . . Damage Inflicted 4200 | 1 1013 44 357 2129 592 64 Guns 3132 | . 365 . 348 2001 418 . Cannons 789 | . 634 19 . 49 87 . Explosions 87 | . . . . . 87 . Melee . | . . . . . . . Ramming 192 | 1 14 25 9 79 . 64 Kinetic 3144 | . 750 19 . 2050 325 . Thermal 336 | . 249 . . . 87 . Explosive . | . . . . . . . Electromagnetic 528 | . . . 348 . 180 . Impact . | . . . . . . . Slashing . | . . . . . . . Piercing . | . . . . . . . Highest Corruption 28 | . 2 2 . . . 28 Average Corruption 3 | . 1 2 . . . 13 Corruption Purged . | . . . . . . . Corruption Blocked . | . . . . . . . Effects 24 | . 9 7 . . . 8 Message Errors 3 | . 1 1 . . . 1 Matter Fused 7 | . 3 2 . . . 2 Heat Flow Errors 3 | . 2 1 . . . . Energy Discharges 6 | . 3 1 . . . 2 Data Loss (minor) 4 | . . 2 . . . 2 Alerts 1 | . . . . . . 1 Overload Shots . | . . . . . . . Overflow Damage 8 | . 8 . . . . . Projectiles 8 | . 8 . . . . . Explosions . | . . . . . . . Melee . | . . . . . . . Knockbacks 8 | . 8 . . . . . Impact . | . . . . . . . Kinetic 8 | . 8 . . . . . Secondary . | . . . . . . . Self-Inflicted Damage 64 | . . . . . . 64 Shots . | . . . . . . . Rammed 29 | 1 3 8 2 15 . . Targets Rammed 31 | 1 5 8 2 15 . . Kicked . | . . . . . . . Crushed 2 | . 2 . . . . . Highest Temperature 257 | . 233 257 11 8 15 . Average Temperature 56 | . 59 135 3 8 7 . Received Heat Transfer 744 | . 174 . 108 300 162 . Siege Activations . | . . . . . . . Martial Activations . | . . . . . . . Shielding Activations . | . . . . . . . Robots Disrupted . | . . . . . . . Combat Hostiles . | . . . . . . . Robots Corrupted . | . . . . . . . Combat Hostiles . | . . . . . . . Parts Fried 4 | . . . 2 . 2 . Impact Corruptions . | . . . . . . . Robots Melted . | . . . . . . . Combat Hostiles . | . . . . . . . Parts Melted 2 | . 2 . . . . . Heat Transferred 914 | . 814 . . . 100 . Parts Sabotaged . | . . . . . . . Parts Stolen . | . . . . . . . Parts Stripped . | . . . . . . . Power Chain Reactions 2 | . . . . . 2 . Alert | -11 -10 -10 -9 -9 -9 -9 ------- Run | Yrd Mat Min Mat Sto Gar Rec Maximum Alert Level 2 | . 1 . . 1 2 1 Low Security (%) 73 | 100 99 100 100 60 32 47 Level 1 21 | . . . . 39 20 52 Level 2 5 | . . . . . 47 . Level 3 . | . . . . . . . Level 4 . | . . . . . . . Level 5 . | . . . . . . . High Security . | . . . . . . . Max Security . | . . . . . . . Peak Influence 552 | . 205 54 135 359 552 248 Initial 248 | . . 54 . 25 108 248 Average 149 | . 121 9 47 161 345 191 Influence Increases 2630 | . 625 103 186 1064 604 48 Destroy 0b10 Robot/C 1620 | . 400 60 120 600 400 40 Destroy 0b10 Robot/NC 125 | . 50 . . 75 . . Destroy Leader 344 | . 90 10 40 204 . . Allied During Kill 111 | . . 3 . 27 75 6 Successful Hack 64 | . 6 . 11 47 . . Select Force Hacks 60 | . 60 . . . . . Disable Machine 30 | . . . . 30 . . Anti-Garrison Action 100 | . . . . . 100 . Destroy Structure 41 | . 4 . . 6 29 2 Lose Combat Pursuer 135 | . 15 30 15 75 . . Influence Decreases 2524 | . 485 243 126 957 219 494 Entered New Map 484 | . . 86 . 35 59 304 Time Decay 1530 | . 485 117 126 612 . 190 Lost Part 10 | . . . . 10 . . Lost Ally 200 | . . 40 . . 160 . Purge Threat 300 | . . . . 300 . . Squads Dispatched 13 | . 4 . 2 7 . . Investigation 5 | . 2 . 2 1 . . Extermination . | . . . . . . . Reinforcement 5 | . 2 . . 3 . . Assault . | . . . . . . . Garrison 3 | . . . . 3 . . Intercept . | . . . . . . . Searches Triggered . | . . . . . . . Construction Impeded . | . . . . . . . Haulers Reinforced . | . . . . . . . Active Scanning Responses . | . . . . . . . Cargo Convoy Interrupts . | . . . . . . . Stealth | -11 -10 -10 -9 -9 -9 -9 --------- Run | Yrd Mat Min Mat Sto Gar Rec Distress Signals 7 | . 2 . 1 4 . . Communications Jammed . | . . . . . . . Distress Signals . | . . . . . . . Times Spotted 99 | . 32 5 12 39 11 . Peak Tracking Total 8 | . 4 3 5 8 2 . Tactical Retreats 5 | . 1 1 1 2 . . Traps | -11 -10 -10 -9 -9 -9 -9 ------- Run | Yrd Mat Min Mat Sto Gar Rec Traps Triggered 9 | . 2 . 1 6 . . Indirectly . | . . . . . . . Trap Hack Attempts . | . . . . . . . Triggered . | . . . . . . . Disarmed 4 | . . . . 4 . . Reprogrammed . | . . . . . . . Reused . | . . . . . . . Traps Extracted . | . . . . . . . Installed . | . . . . . . . Triggered . | . . . . . . . Machines | -11 -10 -10 -9 -9 -9 -9 ---------- Run | Yrd Mat Min Mat Sto Gar Rec Machines Disabled 2 | . . . . 2 . . Max in Single Turn 1 | . . . . 1 . . Machines Repaired . | . . . . . . . Machines Dismantled . | . . . . . . . Machines Sabotaged . | . . . . . . . Overloaded Fab Kills . | . . . . . . . Hacking | -11 -10 -10 -9 -9 -9 -9 --------- Run | Yrd Mat Min Mat Sto Gar Rec Machines Accessed 27 | . 9 . 3 12 3 . Terminals 21 | . 6 . 3 9 3 . Fabricators . | . . . . . . . Repair Stations 2 | . 1 . . 1 . . Recycling Units 3 | . 2 . . 1 . . Scanalyzers . | . . . . . . . Garrison Access 1 | . . . . 1 . . Total Hacks 71 | . 23 . 7 35 6 . Successful 31 | . 8 . 3 19 1 . Failed 39 | . 14 . 4 16 5 . Catastrophic 5 | . . . . 4 1 . Database Lockouts 1 | . 1 . . . . . Manual 42 | . 17 . 6 18 1 . Terminals 60 | . 19 . 7 28 6 . Fabricators . | . . . . . . . Repair Stations 4 | . 2 . . 2 . . Recycling Units 6 | . 2 . . 4 . . Scanalyzers . | . . . . . . . Garrison Access 1 | . . . . 1 . . Terminal Hacks 10 | . 2 . 2 6 . . Robot Schematic 1 | . 1 . . . . . Robot Analysis 1 | . . . 1 . . . Prototype ID Bank 1 | . . . 1 . . . Open Door 2 | . . . . 2 . . Unreport Threat 2 | . . . . 2 . . Locate Traps 1 | . . . . 1 . . Disarm Traps 1 | . . . . 1 . . Hauler Manifests 1 | . 1 . . . . . Fabricator Hacks . | . . . . . . . Repair Station Hacks 3 | . 2 . . 1 . . Scan Component 2 | . 1 . . 1 . . Repair 1 | . 1 . . . . . Recycling Unit Hacks . | . . . . . . . Scanalyzer . | . . . . . . . Garrison Access Hacks 1 | . . . . 1 . . Unlock Access 1 | . . . . 1 . . Unauthorized Hacks 17 | . 4 . 1 11 1 . Terminals 15 | . 2 . 1 11 1 . Assimilate 4 | . . . 1 3 . . Botnet 3 | . 1 . . 2 . . Operators 1 | . . . . 1 . . Skim 6 | . 1 . . 5 . . Override 1 | . . . . . 1 . Fabricators . | . . . . . . . Repair Stations . | . . . . . . . Recycling Units 2 | . 2 . . . . . Tunnel 2 | . 2 . . . . . Scanalyzers . | . . . . . . . Garrison Access . | . . . . . . . Data Cores Recovered . | . . . . . . . Used . | . . . . . . . Hacking Detections 20 | . 6 . 2 10 2 . Full Trace Events 3 | . . . 1 1 1 . Feedback Events . | . . . . . . . Feedback Blocked . | . . . . . . . Robot Schematics Acquired 1 | . 1 . . . . . Robots Built . | . . . . . . . Authchips . | . . . . . . . Time . | . . . . . . . Total Robot Build Rating . | . . . . . . . Part Schematics Acquired . | . . . . . . . Parts Built . | . . . . . . . Authchips . | . . . . . . . Time . | . . . . . . . Total Part Build Rating . | . . . . . . . Parts Repaired 1 | . 1 . . . . . Time 26 | . 26 . . . . . Parts Recycled . | . . . . . . . Recycled Matter . | . . . . . . . Retrieved Matter . | . . . . . . . Retrieved Components . | . . . . . . . Parts Scanalyzed . | . . . . . . . Part Schematics Acquired . | . . . . . . . Parts Damaged . | . . . . . . . Bothacking | -11 -10 -10 -9 -9 -9 -9 ------------ Run | Yrd Mat Min Mat Sto Gar Rec Used RIF Installer . | . . . . . . . Robots Hacked . | . . . . . . . Non-combat . | . . . . . . . Combat . | . . . . . . . Robot Hacks Applied . | . . . . . . . Relay Couplers Released 4 | . . . . . 4 . Programmers 4 | . . . . . 4 . Fabnet Peak Effective % . | . . . . . . . Robots Rewired . | . . . . . . . Allies Hacked . | . . . . . . . Hacks Repelled . | . . . . . . . Allies | -11 -10 -10 -9 -9 -9 -9 -------- Run | Yrd Mat Min Mat Sto Gar Rec Total Allies 15 | . . 3 . 10 2 . Largest Group 10 | . . 3 . 10 10 2 Highest-Rated Group 88 | . . 40 . 88 88 70 Highest-Rated Ally 39 | . . 16 . 16 39 39 Total Orders . | . . . . . . . Ally Attacks 108 | . . 20 . 13 69 6 Total Damage 1110 | . . 224 . 110 640 136 Kills 21 | . . 2 . 2 15 2 Allies Corrupted . | . . . . . . . Allies Melted . | . . . . . . . Intel | -11 -10 -10 -9 -9 -9 -9 ------- Run | Yrd Mat Min Mat Sto Gar Rec Active Infowar (turns) . | . . . . . . . Robot Analysis Total 1 | . . . 1 . . . Derelict Logs Recovered 1 | . . 1 . . . . Drone Launches . | . . . . . . . Drone Recoveries . | . . . . . . . Exploration | -11 -10 -10 -9 -9 -9 -9 ------------- Run | Yrd Mat Min Mat Sto Gar Rec Turns Passed 6224 | 71 1481 609 438 2570 671 384 Spaces Moved 2765 | 40 748 370 206 1008 337 56 Core 4 | 4 . . . . . . Treads 2761 | 36 748 370 206 1008 337 56 Legs . | . . . . . . . Wheels . | . . . . . . . Hover . | . . . . . . . Flight . | . . . . . . . Fastest Speed 50 | 50 160 160 160 160 160 160 Average Speed 159 | 149 160 160 160 160 160 160 Slowest Speed 160 | 160 160 160 160 160 160 160 Overloaded Moves . | . . . . . . . Propulsion Burnouts . | . . . . . . . Robots Hopped . | . . . . . . . Potential Cave-ins . | . . . . . . . Cave-ins Triggered . | . . . . . . . Exploration Rate (%) 49 | 5 97 67 24 95 43 17 Regions Visited 6 Branch Regions 3 Pre-discovered Areas 3 | . 2 . . 1 . . Known Exits Taken 2 | . . . 1 1 . . Unknown Exits Taken 3 | 1 1 1 . . . . Scrap Searched . | . . . . . . . Spaces Dug . | . . . . . . . Terrain Destroyed 5 | . . . . . 5 . Melee . | . . . . . . . Projectile . | . . . . . . . AOE 5 | . . . . . 5 . Terrain Rammed 46 | . . . . . . 46 Walls Destroyed . | . . . . . . . Machines Disabled . | . . . . . . . Actions | -11 -10 -10 -9 -9 -9 -9 --------- Run | Yrd Mat Min Mat Sto Gar Rec Total 3903 | 48 913 380 285 1755 421 101 Wait 754 | . 68 2 42 591 51 . Move 2760 | 39 747 369 205 1008 336 56 Hop . | . . . . . . . Pick Up 20 | 2 13 . 4 1 . . Fast Attach 19 | 6 3 . 1 9 . . Attach 2 | . . . 2 . . . Detach 2 | . . . 1 1 . . Swap 33 | . 8 . 5 14 6 . Drop 30 | . 8 . 7 14 1 . Fire 206 | . 61 1 16 101 27 . Melee . | . . . . . . . Ram 45 | . . . . . . 45 Kick . | . . . . . . . Crush 31 | 1 5 8 2 15 . . Escape Stasis . | . . . . . . . Rewire 1 | . . . . 1 . . Trap . | . . . . . . . Miscellaneous . | . . . . . . . Route ------- -11/Scrapyard -10/Materials (discovered 4 exits: *Mat x3 / [*Min]) -10/Mines (discovered 3 exits: *Mat / [*Exi] / [*Sub]) -9/Materials (discovered 2 exits: [*Mat] / *Sto) -9/Storage (discovered 2 exits: [*Mat] / Gar) -9/Garrison -9/Recycling History --------- Turn | Location | Event 3 | -11/Scrapyard | Discovered new exit (range 15) 72 | -11/Scrapyard | Entered Materials 301 | -10/Materials | Build established: Mutant 647 | -10/Materials | Discovered new exit (range 8) 747 | -10/Materials | Central database locked down 761 | -10/Materials | Discovered new exit (range 15) 833 | -10/Materials | Discovered new exit (range 8) 1014 | -10/Materials | Discovered new exit (range 9) 1064 | -10/Materials | Repaired Lgt. Treads 1553 | -10/Materials | Entered Mines 1566 | -10/Mines | Assisted by bots powering up and referring to "LRC-V3" 1748 | -10/Mines | Lost 3 allies 1750 | -10/Mines | Discovered new exit (range 12) 1882 | -10/Mines | Discovered new exit (range 12) 1982 | -10/Mines | Deemed a non-threat by the Exiles lab entrance 1982 | -10/Mines | Discovered new exit (range 5) 2162 | -10/Mines | Entered Materials 2162 | -9/Materials | Evolved 2 slots: Propulsion x1, Utility x1 2163 | -9/Materials | Identified exit to Storage 2493 | -9/Materials | Discovered new exit (range 5) 2600 | -9/Materials | Entered Storage 3308 | -9/Storage | Build established: Scavenger-Mutant 3549 | -9/Storage | Garrison activated, responded to threat 4295 | -9/Storage | Learned 4 Recycling zone layouts 4704 | -9/Storage | Discovered new exit (range 16) 4961 | -9/Storage | Assisted by bots powering up and referring to "LRC-V3" 5153 | -9/Storage | Identified exit to Garrison 5170 | -9/Storage | Entered Garrison 5170 | -9/Garrison | Accompanied by 10 allies 5218 | -9/Garrison | Triggered checkpoint 5247 | -9/Garrison | Build established: Commander-Mutant 5384 | -9/Garrison | Triggered checkpoint 5437 | -9/Garrison | Lost 7 allies 5454 | -9/Garrison | Triggered checkpoint 5617 | -9/Garrison | Discovered new exit (range 11) 5699 | -9/Garrison | Build established: Scavenger-Mutant 5820 | -9/Garrison | Rescued a captive Derelict 5825 | -9/Garrison | Rescued a captive Derelict 5841 | -9/Garrison | Entered Recycling 5841 | -9/Recycling | Accompanied by 2 allies 6023 | -9/Recycling | Core integrity fell below 50% 6037 | -9/Recycling | System corruption reached 10% 6135 | -9/Recycling | Core integrity fell below 20% 6225 | -9/Recycling | Core destroyed Last Messages --------------- 06169_ Slammed into Wall. 06169_ Destabilizing: System corrupted (+1). 06169_ Destabilizing: Core damaged (-8). 06176_ Slammed into Wall. 06176_ Destabilizing: System corrupted (+1). 06183_ System corrupted: Energy discharge (-29). 06183_ Slammed into Wall. 06183_ Destabilizing: System corrupted (+2). 06190_ Slammed into Wall. 06190_ Destabilizing: Core damaged (-20). 06197_ Slammed into Wall. 06198_ System corrupted: Matter fused (-5). 06204_ Slammed into Wall. 06211_ Destabilizing: System corrupted (+1). 06213_ System corrupted: Energy discharge (-31). 06218_ Slammed into Wall. 06218_ Destabilizing: Core damaged (-20). 06225_ Slammed into Wall. 06225_ Destabilizing: System corrupted (+1). 06225_ Destabilizing: Core damaged (-12). Map ----- +----------------------------------------------------+ | ??????????????????????????????????????????? | | ????# # # "?????????????????? | | ????# + # "?????????????????? | | ????# # #######?????????????????? | | ????# # #???????????????????????? | | ????##### ##### #######?????????????????? | | ????????###???# # ?????????????????? | | ??????????????# # """"?????????????????? | | ??????????????# # """"?????????????????? | | ?????????????## + """"?????????????????? | | ?????????????# # """"?????????????????? | | ?????????????## # """"?????????????????? | | ??????????????#% # """"?????????????????? | | ??????????????# # """"?????????????????? | | ??????????????# # ?????????????????? | | ??????????????# #######?????????????????? | | ??????????????# #???????????????????????? | | ??????????????#% ##??????????????????????? | | ??????????????# #?????###??????????????? | | ??????????????# ######## ######?????????? | | ??????????????# r## #?????????? | | ??????????????# r## #?????????? | | ??????????????# ## #?????????? | | ?????????????## r## #?????????? | | ?????????????# # #?????????? | | ?????????????# h @# ########### | | ?????????????# T + + | | ?????????????# # # | | ?????????????# # # # | | ?????????????####### + # | | ???????????????????# ######+##+# | | ???????????????????# #??# # | | ???????????????????##############??# ""# | | ???????????????????????????????????# ""# | | ???????????????????????????????????# T"# | | ???????????????????????????????????# ""# | | ???????????????????????????????????# ""# | | ???????????????????????????????????# # | | ???????????????????????????????????######## | | ??????????????????????????????????????????? | | ??????????????????????????????????????????? | | | | | | | | | | | | | | | | | | | +----------------------------------------------------+ Best States ------------- Heat Dissipation 52 Energy Generation 14 Energy Capacity 280 Matter Stores 300 Matter Capacity 300 Sight Range 16 Terrain Scan Density 10 Armor Coverage 150 Evasion (%) 40 Recoil Reduction 3 Item Schematics ----------------- None Robot Schematics ------------------ M-13 Machinist | -10/Materials | Hacked Fabricated ------------ Nothing Repaired ---------- Lgt. Treads | 21% | -10/Materials Alien Tech Used ----------------- None Achievements -------------- None Challenges ------------ None Game ------ Seed AngularMetaTether Manual? 0 Play Time 00:21:28 Cumulative 722.5 hours Start 2025.06.03 @ 08:09:14 End 2025.06.11 @ 07:36:39 Sessions 5 Manual Loads 0 Difficulty Rogue Special Mode None Game No. 377 Rogue 377 Adventurer 0 Explorer 0 Win Type - Total 58 Types 39/4/5/2/1/1/3/1/1/1 Lore% 92 Gallery% 85 Achievement% 91 Wizard Run 0 Options --------- Layout 0 ASCII 0 Keyboard 1 Movement Numpad Keybinds 0 Fullscreen 2 Font 18/SmallcapsGlow Map View 76x50 Zoom Use 0% Tactical HUD 1 Map Filters NONE Filters NONE Steam 1 RUN: 6834edd5-b2d4-4495-a79c-58a687deb458